bitfinex/quotes_SOLUSD_20241126
["timestamp","ask_amount","ask_price","bid_price","bid_amount"]
[1732638481596,0.5161833,231.43,231.39,21.6123523]
[1732638482510,0.5161833,231.43,231.34,4.3225]
[1732638482511,0.5161833,231.43,231.4,21.6123523]
[1732638483002,0.5161833,231.43,231.42,21.6123523]
[1732638484103,25.9300523,231.61,231.45,20.0]
[1732638484308,25.9300523,231.61,231.54,21.6123523]
[1732638484519,4.3173,231.63,231.48,21.6123523]
[1732638484815,21.6123523,231.64,231.57,21.6123523]
[1732638485112,21.6123523,231.64,231.56,21.6123523]
[1732638485610,22.6123523,231.65,231.58,21.6123523]
[1732638485807,1.0,231.65,231.58,21.6123523]
[1732638485990,1.0,231.65,231.59,21.6123523]
[1732638486193,1.0,231.65,231.6,21.6123523]
[1732638486709,21.6123523,231.61,231.49,15.747]
[1732638487005,1.0,231.65,231.51,4.3193]
[1732638487215,21.6123523,231.64,231.57,21.6123523]
[1732638487513,1.0,231.65,231.59,21.6123523]
[1732638487808,22.6123523,231.65,231.57,21.6123523]
[1732638488019,1.0,231.65,231.58,21.6123523]
[1732638488407,26.9292523,231.65,231.58,21.6123523]
[1732638488719,1.0,231.65,231.59,21.6123523]
[1732638488908,1.0,231.65,231.62,21.6123523]
[1732638489089,1.0,231.65,231.63,21.6123523]
[1732638489296,1.0,231.65,231.64,21.6123523]
[1732638489603,1.0,231.65,231.57,20.0]
[1732638489797,1.0,231.65,231.62,21.6123523]
[1732638490296,1.0,231.65,231.64,21.6123523]
[1732638490621,1.0,231.65,231.63,21.6123523]
[1732638490808,1.0,231.65,231.62,21.6123523]
[1732638491187,1.0,231.65,231.52,4.3192]
[1732638491510,1.0,231.65,231.64,21.6123523]
[1732638492590,1.0,231.65,231.64,25.9293523]
[1732638493215,1.0,231.65,231.64,26.0548423]
[1732638493390,1.0,231.65,231.64,25.9293523]
[1732638493714,1.0,231.65,231.64,26.0548423]
[1732638493909,1.0,231.65,231.64,25.9293523]
[1732638495210,1.0,231.65,231.57,5.0]
[1732638495508,1.0,231.65,231.64,21.6123523]
[1732638496222,0.5161833,231.66,231.65,0.12549]
[1732638496390,0.5161833,231.66,231.65,0.25098]
[1732638496595,0.5161833,231.66,231.64,21.6123523]
[1732638496906,0.5161833,231.66,231.6,21.6123523]
[1732638496907,0.5161833,231.66,231.65,25.9291523]
[1732638497109,0.5161833,231.66,231.65,20.0]
[1732638497320,0.5161833,231.66,231.64,20.0]
[1732638497508,0.5161833,231.66,231.63,20.0]
[1732638497709,0.5161833,231.66,231.61,21.6123523]
[1732638498311,0.5161833,231.66,231.63,21.6123523]
[1732638498512,0.5161833,231.66,231.65,21.6123523]
[1732638498710,0.5161833,231.66,231.65,25.9291523]
[1732638499301,0.5161833,231.66,231.65,26.0546423]
[1732638499498,0.5161833,231.66,231.65,31.0546423]
[1732638499700,0.5161833,231.66,231.65,26.0546423]
[1732638499925,0.5161833,231.66,231.65,25.9291523]
[1732638500118,6.1126,231.88,231.74,20.0]
[1732638500303,6.1126,231.88,231.83,21.6123523]
[1732638500625,22.1285356,231.89,231.81,21.6123523]
[1732638500805,0.5161833,231.89,231.83,21.6123523]
[1732638501004,0.5161833,231.89,231.85,21.6123523]
[1732638501222,0.5161833,231.89,231.83,21.6123523]
[1732638501810,0.5161833,231.89,231.85,21.6123523]
[1732638502014,0.5161833,231.89,231.76,15.1017]
[1732638502015,0.5161833,231.89,231.87,21.6123523]
[1732638502927,0.5161833,231.89,231.88,4.3125]
[1732638503126,0.5161833,231.89,231.88,10.26337832]
[1732638503313,0.5161833,231.89,231.88,10.13788832]
[1732638503827,0.5161833,231.89,231.88,31.75024062]
[1732638504010,0.5161833,231.89,231.88,25.9248523]
[1732638505711,0.5161833,231.89,231.82,4.3136]
[1732638505905,21.6123523,231.88,231.82,4.3136]
[1732638506213,0.5161833,231.89,231.83,21.6123523]
[1732638506511,0.5161833,231.89,231.82,39.14486698]
[1732638506716,0.5161833,231.89,231.83,34.83126698]
[1732638506914,0.5161833,231.89,231.84,34.83126698]
[1732638507115,0.5161833,231.89,231.87,34.83126698]
[1732638507929,0.5161833,231.89,231.85,34.83126698]
[1732638508130,35.34745028,231.89,231.82,49.92906698]
[1732638508442,0.5161833,231.89,231.82,49.92906698]
[1732638508730,0.5161833,231.89,231.82,39.14486698]
[1732638509032,34.83126698,231.88,231.82,4.3136]
[1732638509408,34.83126698,231.87,231.8,34.83126698]
[1732638509606,34.83126698,231.88,231.81,34.83126698]
[1732638510014,0.5161833,231.89,231.85,34.83126698]
[1732638510210,0.5161833,231.89,231.88,34.83126698]
[1732638510542,0.5161833,231.89,231.76,17.254748]
[1732638510831,0.5161833,231.89,231.88,34.83126698]
[1732638511609,0.5161833,231.89,231.87,4.3127]
[1732638512013,0.5161833,231.89,231.86,4.3128]
[1732638512219,0.5161833,231.89,231.82,34.83126698]
[1732638512727,0.5161833,231.89,231.88,34.83126698]
[1732638513230,0.5161833,231.89,231.87,4.3126]
[1732638513617,0.5161833,231.89,231.88,34.83126698]
[1732638513933,8.33e-05,231.89,231.88,57.81714698]
[1732638514236,8.33e-05,231.89,231.88,76.6125353]
[1732638514819,8.33e-05,231.89,231.88,100.1384393]
[1732638515020,15.0,232.04,231.88,100.1384393]
[1732638515021,15.0,232.04,231.92,33.09549]
[1732638515218,15.0,232.04,231.99,34.83126698]
[1732638516828,15.0,232.04,231.96,34.83126698]
[1732638517031,15.0,232.04,231.97,4.3109]
[1732638517929,15.0,232.04,231.96,39.14226698]
[1732638518130,15.0,232.04,232.02,34.83126698]
[1732638518321,15.0,232.04,232.0,34.83126698]
[1732638519033,15.0,232.04,232.02,34.83126698]
[1732638519219,15.0,232.04,232.0,4.3103]
[1732638519422,15.0,232.04,232.0,39.14156698]
[1732638520045,15.0,232.04,231.98,34.83126698]
[1732638520227,49.83126698,232.04,231.96,34.83126698]
[1732638520754,34.83126698,232.02,231.94,34.83126698]
[1732638520933,15.0,232.04,231.98,34.83126698]
[1732638521329,15.0,232.04,231.97,34.83126698]
[1732638521524,15.0,232.04,231.98,34.83126698]
[1732638522339,49.83126698,232.04,231.97,34.83126698]
[1732638523422,34.83126698,231.98,231.91,34.83126698]
[1732638523624,34.83126698,231.95,231.87,34.83126698]
[1732638523844,34.83126698,231.94,231.87,34.83126698]
[1732638524048,34.83126698,231.97,231.9,34.83126698]
[1732638524254,34.83126698,231.97,231.84,39.83126698]
[1732638524255,34.83126698,231.98,231.91,34.83126698]
[1732638524548,34.83126698,231.98,231.84,44.83126698]
[1732638524549,34.83126698,231.97,231.9,34.83126698]
[1732638524751,34.83126698,231.95,231.87,34.83126698]
[1732638524964,34.83126698,231.94,231.87,34.83126698]
[1732638526355,34.83126698,231.92,231.85,34.83126698]
[1732638526842,34.83126698,231.95,231.88,34.83126698]
[1732638527227,34.83126698,231.96,231.89,34.83126698]
[1732638527428,39.14216698,231.97,231.89,34.83126698]
[1732638527855,34.83126698,231.93,231.86,34.83126698]
[1732638528156,34.83126698,231.93,231.84,20.0]
[1732638528157,34.83126698,231.95,231.87,34.83126698]
[1732638528326,34.83126698,231.95,231.88,34.83126698]
[1732638528846,39.14236698,231.96,231.89,34.83126698]
[1732638529155,34.83126698,231.95,231.87,34.83126698]
[1732638529347,4.3111,231.96,231.89,34.83126698]
[1732638529858,34.83126698,231.98,231.91,34.83126698]
[1732638530062,34.83126698,231.92,231.82,34.83126698]
[1732638530355,15.0868,231.99,231.79,20.0]
[1732638530541,28.776884,231.98,231.79,20.0]
[1732638531045,15.0868,231.99,231.79,20.0]
[1732638531445,21.42826566,231.93,231.85,21.42826566]
[1732638531648,21.42826566,231.94,231.87,21.42826566]
[1732638531953,21.42826566,231.96,231.88,21.42826566]
[1732638532255,21.42826566,231.94,231.87,21.42826566]
[1732638533041,21.42826566,231.95,231.88,21.42826566]
[1732638533231,25.73976566,231.94,231.87,21.42826566]
[1732638533855,25.73976566,231.94,231.86,21.42826566]
[1732638534059,21.42826566,231.89,231.83,21.42826566]
[1732638534231,21.42826566,231.91,231.83,21.42826566]
[1732638534837,4.3115,231.94,231.88,21.42826566]
[1732638535051,4.3115,231.94,231.89,21.42826566]
[1732638535255,21.42826566,231.97,231.9,21.42826566]
[1732638535467,21.42826566,231.97,231.89,21.42826566]
[1732638535857,21.42826566,231.92,231.85,21.42826566]
[1732638536063,21.42826566,231.88,231.8,21.42826566]
[1732638536244,21.42826566,231.9,231.82,21.42826566]
[1732638537142,25.74056566,231.9,231.82,21.42826566]
[1732638537555,21.42826566,231.84,231.76,21.42826566]
[1732638537868,21.42826566,231.88,231.8,21.42826566]
[1732638538065,4.3123,231.9,231.85,21.42826566]
[1732638538268,4.3119,231.92,231.87,21.42826566]
[1732638538498,30.909,232.04,231.86,21.8958]
[1732638538677,4.3097,232.03,231.98,21.42826566]
[1732638538967,4.3097,232.03,231.96,21.42826566]
[1732638539269,21.42826566,232.02,231.94,21.42826566]
[1732638539475,21.42826566,231.98,231.89,41.42826566]
[1732638539847,21.42826566,231.98,231.91,21.42826566]
[1732638541270,4.3101,232.01,231.93,21.42826566]
[1732638541473,4.3101,232.01,231.95,21.42826566]
[1732638541847,4.3101,232.01,231.93,21.42826566]
[1732638542675,4.3098,232.03,231.97,21.42826566]
[1732638542873,15.0,232.04,231.97,21.42826566]
[1732638543358,21.42826566,232.02,231.95,21.42826566]
[1732638543564,21.42826566,232.0,231.91,21.42826566]
[1732638543957,21.42826566,232.02,231.95,21.42826566]
[1732638544178,40.73786566,232.04,231.95,21.42826566]
[1732638545060,40.73786566,232.04,231.88,4.56338]
[1732638545061,40.73786566,232.04,231.97,21.42826566]
[1732638545456,40.73786566,232.04,231.95,21.42826566]
[1732638545685,21.42826566,232.02,231.93,21.42826566]
[1732638546458,21.42826566,232.0,231.93,21.42826566]
[1732638546657,4.3105,231.99,231.93,21.42826566]
[1732638546880,4.3105,231.99,231.91,21.42826566]
[1732638547265,4.3105,231.99,231.93,21.42826566]
[1732638547890,25.774,232.04,231.98,21.42826566]
[1732638547891,15.0,232.04,231.98,21.42826566]
[1732638548175,21.42826566,232.03,231.96,21.42826566]
[1732638548380,21.42826566,232.03,231.94,21.42826566]
[1732638548759,21.42826566,232.01,231.94,21.42826566]
[1732638549484,4.3103,232.0,231.94,21.42826566]
[1732638549786,19.3097,232.04,231.96,21.42826566]
[1732638551077,21.42826566,232.03,231.96,21.42826566]
[1732638551386,21.42826566,232.01,231.92,21.42826566]
[1732638551692,21.42826566,231.97,231.9,21.42826566]
[1732638551868,21.42826566,231.99,231.9,21.42826566]
[1732638552784,4.3107,231.98,231.9,21.42826566]
[1732638553568,4.3107,231.98,231.82,6.44225371]
[1732638553569,21.42826566,231.95,231.88,21.42826566]
[1732638554690,21.42826566,231.93,231.86,21.42826566]
[1732638554983,4.3118,231.92,231.86,21.42826566]
[1732638555182,4.311,231.96,231.88,21.42826566]
[1732638555397,4.311,231.96,231.9,21.42826566]
[1732638555592,25.73926566,231.96,231.88,21.42826566]
[1732638555884,21.42826566,231.94,231.88,21.42826566]
[1732638556277,25.73926566,231.96,231.88,21.42826566]
[1732638556479,4.311,231.96,231.9,21.42826566]
[1732638556669,25.73926566,231.96,231.88,21.42826566]
[1732638556870,21.42826566,231.94,231.86,21.42826566]
[1732638557075,21.42826566,231.94,231.82,4.3135]
[1732638557076,21.42826566,231.91,231.83,21.42826566]
[1732638557274,21.42826566,231.88,231.8,21.42826566]
[1732638557480,4.3116,231.93,231.78,21.42826566]
[1732638557481,21.42826566,231.86,231.78,21.42826566]
[1732638557868,21.42826566,231.88,231.8,21.42826566]
[1732638558068,21.42826566,231.86,231.76,21.42826566]
[1732638558495,21.42826566,231.84,231.76,21.42826566]
[1732638558896,21.42826566,231.86,231.76,21.42826566]
[1732638559067,21.42826566,231.86,231.74,19.431]
[1732638559068,4.3131,231.85,231.78,21.42826566]
[1732638559799,21.42826566,231.84,231.76,21.42826566]
[1732638560678,4.3135,231.83,231.76,21.42826566]
[1732638562997,21.42826566,231.78,231.68,21.42826566]
[1732638563175,6.4259,231.81,231.66,21.42826566]
[1732638563176,21.42826566,231.75,231.66,21.42826566]
[1732638563374,6.4259,231.81,231.66,21.42826566]
[1732638563375,21.42826566,231.73,231.66,21.42826566]
[1732638563687,21.42826566,231.75,231.66,21.42826566]
[1732638563888,21.42826566,231.77,231.68,21.42826566]
[1732638564297,25.74176566,231.83,231.74,21.42826566]
[1732638564471,4.3135,231.83,231.76,21.42826566]
[1732638565077,25.74176566,231.83,231.74,21.42826566]
[1732638566097,21.42826566,231.8,231.74,21.42826566]
[1732638566295,21.42826566,231.82,231.74,21.42826566]
[1732638567601,4.3138,231.81,231.76,21.42826566]
[1732638567802,4.3131,231.85,231.78,21.42826566]
[1732638568285,21.42826566,231.82,231.74,21.42826566]
[1732638568506,21.42826566,231.8,231.72,21.42826566]
[1732638569492,21.42826566,231.78,231.7,21.42826566]
[1732638569699,4.3146,231.77,231.7,21.42826566]
[1732638570297,4.3146,231.77,231.67,21.42826566]
[1732638570298,21.42826566,231.75,231.67,21.42826566]
[1732638571700,4.3151,231.74,231.67,21.42826566]
[1732638572084,21.42826566,231.73,231.65,21.42826566]
[1732638572279,21.42826566,231.73,231.63,6.44225371]
[1732638572280,21.42826566,231.71,231.63,21.42826566]
[1732638572481,21.42826566,231.69,231.63,21.42826566]
[1732638573300,21.42826566,231.67,231.59,21.42826566]
[1732638573603,21.42826566,231.65,231.57,21.42826566]
[1732638573801,21.42826566,231.63,231.56,21.42826566]
[1732638574301,21.42826566,231.68,231.6,21.42826566]
[1732638574500,21.42826566,231.7,231.63,21.42826566]
[1732638574680,21.42826566,231.68,231.61,21.42826566]
[1732638575199,21.42826566,231.67,231.59,21.42826566]
[1732638575398,21.42826566,231.67,231.53,0.12549]
[1732638575399,21.42826566,231.66,231.58,21.42826566]
[1732638575585,21.42826566,231.65,231.58,21.42826566]
[1732638575980,25.74486566,231.67,231.6,21.42826566]
[1732638576176,4.3166,231.67,231.6,21.42826566]
[1732638576410,21.42826566,231.66,231.58,25.74626566]
[1732638576907,21.42826566,231.66,231.58,21.42826566]
[1732638577103,4.3151,231.74,231.65,21.42826566]
[1732638577287,25.74336566,231.74,231.67,21.42826566]
[1732638577489,21.42826566,231.72,231.63,21.42826566]
[1732638577800,21.42826566,231.73,231.66,21.42826566]
[1732638578005,25.74336566,231.74,231.67,21.42826566]
[1732638578193,25.74336566,231.74,231.66,21.42826566]
[1732638578899,21.42826566,231.72,231.64,21.42826566]
[1732638579200,21.42826566,231.71,231.64,21.42826566]
[1732638579596,21.42826566,231.67,231.6,21.42826566]
[1732638579810,21.42826566,231.67,231.58,21.42826566]
[1732638580008,21.42826566,231.68,231.61,21.42826566]
[1732638580189,25.74456566,231.68,231.61,21.42826566]
[1732638580389,4.3163,231.68,231.61,21.42826566]
[1732638580813,21.42826566,231.69,231.61,25.74576566]
[1732638581023,25.74436566,231.69,231.61,25.74576566]
[1732638581517,25.74436566,231.69,231.61,21.42826566]
[1732638582598,21.42826566,231.67,231.6,21.42826566]
[1732638583005,4.3161,231.69,231.56,4.3185]
[1732638583006,21.42826566,231.65,231.58,21.42826566]
[1732638583817,21.42826566,231.66,231.59,21.42826566]
[1732638584198,21.42826566,231.71,231.62,21.42826566]
[1732638584516,21.42826566,231.7,231.62,21.42826566]
[1732638584717,21.42826566,231.68,231.62,21.42826566]
[1732638584917,21.42826566,231.69,231.62,21.42826566]
[1732638585094,21.42826566,231.67,231.6,21.42826566]
[1732638585498,21.42826566,231.67,231.59,25.74616566]
[1732638585719,25.74476566,231.67,231.59,25.74616566]
[1732638585916,25.74476566,231.67,231.6,21.42826566]
[1732638586924,21.42826566,231.71,231.63,21.42826566]
[1732638587218,21.42826566,231.69,231.61,21.42826566]
[1732638587421,21.42826566,231.67,231.59,25.74616566]
[1732638587627,21.42826566,231.67,231.59,21.42826566]
[1732638588013,21.42826566,231.68,231.6,21.42826566]
[1732638588211,21.42826566,231.69,231.62,21.42826566]
[1732638588827,21.42826566,231.68,231.61,21.42826566]
[1732638589127,4.3164,231.67,231.59,21.42826566]
[1732638589304,21.42826566,231.6,231.53,21.42826566]
[1732638589503,21.42826566,231.58,231.49,21.42826566]
[1732638591004,21.42826566,231.63,231.56,21.42826566]
[1732638591214,6.4228,231.66,231.62,21.42826566]
[1732638591632,6.4228,231.66,231.6,21.42826566]
[1732638591941,10.7395,231.66,231.6,21.42826566]
[1732638592506,6.4228,231.66,231.59,21.42826566]
[1732638592706,6.4228,231.66,231.62,21.42826566]
[1732638593534,16.1053,231.71,231.6,4.3177]
[1732638593535,22.5281,231.71,231.65,21.42826566]
[1732638593709,22.5281,231.71,231.66,21.42826566]
[1732638594237,22.5281,231.71,231.64,21.42826566]
[1732638594608,26.8438,231.71,231.64,21.42826566]
[1732638595547,22.5281,231.71,231.66,21.42826566]
[1732638595854,21.42826566,231.74,231.66,21.42826566]
[1732638596049,27.5281,231.76,231.57,31.0247]
[1732638596050,21.42826566,231.71,231.63,21.42826566]
[1732638596356,21.42826566,231.71,231.57,31.0247]
[1732638596357,21.42826566,231.72,231.64,21.42826566]
[1732638596561,21.42826566,231.72,231.65,21.42826566]
[1732638597273,25.74396566,231.72,231.65,21.42826566]
[1732638598546,21.42826566,231.72,231.65,21.42826566]
[1732638599059,21.42826566,231.73,231.65,21.42826566]
[1732638599262,21.42826566,231.71,231.64,21.42826566]
[1732638599638,25.74406566,231.71,231.64,21.42826566]
[1732638601037,4.3149,231.75,231.69,21.42826566]
[1732638601240,43.95636566,231.76,231.69,21.42826566]
[1732638601462,21.42826566,231.71,231.64,21.42826566]
[1732638601965,21.42826566,231.71,231.57,20.0]
[1732638601966,15.1051,231.71,231.57,20.0]
[1732638602263,4.3158,231.71,231.57,20.0]
[1732638602438,15.1027,231.75,231.57,20.0]
[1732638602641,4.3149,231.75,231.59,20.0]
[1732638602971,26.843,231.76,231.69,21.42826566]
[1732638603561,4.3146,231.78,231.74,21.42826566]
[1732638603762,26.3637,231.81,231.76,21.42826566]
[1732638603977,22.0499,231.81,231.78,21.42826566]
[1732638604262,22.0499,231.81,231.72,21.42826566]
[1732638604263,22.0499,231.88,231.8,21.42826566]
[1732638604450,22.0499,231.88,231.83,21.42826566]
[1732638604956,21.42826566,231.92,231.85,21.42826566]
[1732638605144,6.5438,231.95,231.87,21.42826566]
[1732638605341,6.5438,231.95,231.89,21.42826566]
[1732638605540,6.5438,231.95,231.76,16.2175]
[1732638605541,21.42826566,231.9,231.79,20.0]
[1732638605743,21.42826566,231.84,231.77,4.3146]
[1732638605960,21.42826566,231.84,231.75,21.42826566]
[1732638605961,21.42826566,231.82,231.73,21.42826566]
[1732638606140,21.42826566,231.87,231.79,21.42826566]
[1732638606345,5.0,231.9,231.72,15.1043]
[1732638606745,21.42826566,231.84,231.76,21.42826566]
[1732638606944,21.42826566,231.8,231.72,25.74376566]
[1732638607140,21.42826566,231.76,231.68,21.42826566]
[1732638607760,21.42826566,231.76,231.66,21.42826566]
[1732638607761,21.42826566,231.74,231.66,21.42826566]
[1732638608046,21.42826566,231.74,231.67,21.42826566]
[1732638608361,25.74276566,231.78,231.7,21.42826566]
[1732638608967,6.5438,231.82,231.77,21.42826566]
[1732638609264,4.313,231.86,231.79,21.42826566]
[1732638609464,22.1157,231.89,231.81,21.42826566]
[1732638609647,21.42826566,231.86,231.77,21.42826566]
[1732638609852,21.42826566,231.84,231.77,21.42826566]
[1732638610359,21.42826566,231.84,231.75,21.42826566]
[1732638610682,21.42826566,231.78,231.7,21.42826566]
[1732638610861,21.42826566,231.8,231.72,21.42826566]
[1732638611181,21.42826566,231.78,231.7,21.42826566]
[1732638611353,21.42826566,231.77,231.69,21.42826566]
[1732638611677,21.42826566,231.77,231.7,4.3159]
[1732638611868,21.42826566,231.77,231.69,21.42826566]
[1732638612261,21.42826566,231.76,231.68,21.42826566]
[1732638612693,21.42826566,231.73,231.66,21.42826566]
[1732638612976,21.42826566,231.81,231.64,4.317]
[1732638613278,26.4292,231.83,231.65,6.27542038]
[1732638613781,26.4292,231.83,231.68,20.0]
[1732638614079,26.4292,231.83,231.69,20.0]
[1732638614257,21.42826566,231.81,231.73,21.42826566]
[1732638614666,43.54396566,231.83,231.75,21.42826566]
[1732638615052,21.42826566,231.81,231.73,21.42826566]
[1732638615987,25.74216566,231.81,231.73,21.42826566]
[1732638616173,47.85756566,231.83,231.75,21.42826566]
[1732638616362,43.54396566,231.83,231.75,21.42826566]
[1732638616751,47.85746566,231.83,231.75,21.42826566]
[1732638617156,43.54396566,231.83,231.75,21.42826566]
[1732638617671,21.42826566,231.81,231.73,25.74346566]
[1732638617872,47.85746566,231.83,231.75,21.42826566]
[1732638618071,22.1157,231.83,231.77,21.42826566]
[1732638618275,25.74156566,231.85,231.77,21.42826566]
[1732638618583,25.74156566,231.85,231.73,21.42826566]
[1732638618584,21.42826566,231.81,231.73,21.42826566]
[1732638618881,21.42826566,231.81,231.75,21.42826566]
[1732638619062,21.42826566,231.82,231.75,21.42826566]
[1732638619458,21.42826566,231.78,231.7,21.42826566]
[1732638619668,21.42826566,231.72,231.62,21.42826566]
[1732638619873,21.42826566,231.72,231.6,15.112]
[1732638619874,21.42826566,231.68,231.6,25.74596566]
[1732638620076,4.3149,231.75,231.54,21.7347]
[1732638620077,21.42826566,231.66,231.58,25.74616566]
[1732638620274,21.42826566,231.66,231.58,25.74626566]
[1732638620882,21.42826566,231.66,231.58,21.42826566]
[1732638621570,21.42826566,231.62,231.54,21.42826566]
[1732638621771,21.42826566,231.62,231.52,10.798]
[1732638621772,21.42826566,231.6,231.52,21.42826566]
[1732638621989,25.74576566,231.62,231.54,21.42826566]
[1732638622190,25.74576566,231.62,231.5,4.3196]
[1732638622191,21.42826566,231.66,231.58,21.42826566]
[1732638622492,21.42826566,231.74,231.57,6.27542038]
[1732638622693,21.42826566,231.7,231.63,21.42826566]
[1732638622896,21.42826566,231.71,231.63,21.42826566]
[1732638623189,21.42826566,231.74,231.66,21.42826566]
[1732638623393,6.6197,231.75,231.68,21.42826566]
[1732638623981,21.42826566,231.7,231.61,25.74586566]
[1732638624189,21.42826566,231.74,231.65,21.42826566]
[1732638624373,21.42826566,231.74,231.67,21.42826566]
[1732638624572,6.6197,231.75,231.69,21.42826566]
[1732638624913,21.42826566,231.77,231.69,21.42826566]
[1732638625116,21.42826566,231.73,231.63,21.42826566]
[1732638625411,21.42826566,231.71,231.63,21.42826566]
[1732638625612,21.42826566,231.73,231.65,21.42826566]
[1732638625790,21.42826566,231.73,231.65,25.74496566]
[1732638626118,21.42826566,231.73,231.65,21.42826566]
[1732638626309,21.42826566,231.69,231.61,25.74566566]
[1732638626488,21.42826566,231.71,231.63,21.42826566]
[1732638627723,21.42826566,231.67,231.59,25.74606566]
[1732638627888,4.3162,231.69,231.55,21.42826566]
[1732638628094,21.42826566,231.63,231.55,21.42826566]
[1732638628290,21.42826566,231.61,231.53,4.319]
[1732638628597,21.42826566,231.59,231.53,4.319]
[1732638628798,21.42826566,231.57,231.49,21.42826566]
[1732638629714,21.42826566,231.64,231.55,25.74686566]
[1732638629911,21.42826566,231.64,231.57,21.42826566]
[1732638630113,21.42826566,231.64,231.55,21.42826566]
[1732638630314,21.42826566,231.62,231.55,21.42826566]
[1732638630507,21.42826566,231.58,231.49,21.42826566]
[1732638630716,21.42826566,231.56,231.49,21.42826566]
[1732638631219,21.42826566,231.6,231.53,21.42826566]
[1732638631400,21.42826566,231.62,231.55,21.42826566]
[1732638631610,27.96636566,231.72,231.61,21.42826566]
[1732638631806,27.96636566,231.72,231.65,21.42826566]
[1732638631995,32.28206566,231.72,231.63,21.42826566]
[1732638632196,27.96636566,231.72,231.63,21.42826566]
[1732638632603,21.42826566,231.68,231.61,21.42826566]
[1732638633810,21.42826566,231.7,231.61,25.74576566]
[1732638634115,21.42826566,231.7,231.61,21.42826566]
[1732638634419,34.89454824,231.66,231.59,4.3178]
[1732638634730,4.3157,231.71,231.52,6.27542038]
[1732638634731,34.89454824,231.64,231.56,34.89454824]
[1732638635299,4.3157,231.71,231.52,4.3192]
[1732638635300,34.89454824,231.69,231.61,34.89454824]
[1732638636151,34.89454824,231.63,231.58,4.318]
[1732638636810,34.89454824,231.63,231.56,4.3184]
[1732638637429,34.89454824,231.65,231.57,34.89454824]
[1732638637613,34.89454824,231.67,231.59,34.89454824]
[1732638637933,34.89454824,231.68,231.59,34.89454824]
[1732638638115,34.89454824,231.68,231.61,34.89454824]
[1732638638528,34.89454824,231.66,231.59,34.89454824]
[1732638639025,34.89454824,231.66,231.6,4.3177]
[1732638639211,34.89454824,231.66,231.59,34.89454824]
[1732638639716,34.89454824,231.66,231.57,39.21274824]
[1732638639929,34.89454824,231.64,231.57,39.21274824]
[1732638640123,34.89454824,231.6,231.55,4.3186]
[1732638640528,34.89454824,231.62,231.55,4.3186]
[1732638641130,33.776884,231.71,231.55,4.3186]
[1732638641131,34.89454824,231.64,231.57,34.89454824]
[1732638641345,34.89454824,231.66,231.59,34.89454824]
[1732638641552,34.89454824,231.68,231.59,34.89454824]
[1732638641848,34.89454824,231.66,231.59,34.89454824]
[1732638642060,34.89454824,231.64,231.55,39.21314824]
[1732638642258,34.89454824,231.62,231.55,4.3186]
[1732638642427,34.89454824,231.58,231.51,34.89454824]
[1732638642627,34.89454824,231.58,231.52,4.3192]
[1732638642829,34.89454824,231.62,231.54,34.89454824]
[1732638643052,34.89454824,231.66,231.58,34.89454824]
[1732638643239,34.89454824,231.68,231.6,34.89454824]
[1732638643628,34.89454824,231.66,231.6,34.89454824]
[1732638644048,34.89454824,231.66,231.58,34.89454824]
[1732638644251,34.89454824,231.64,231.57,4.3183]
[1732638644633,34.89454824,231.62,231.54,34.89454824]
[1732638645054,34.89454824,231.62,231.55,4.3187]
[1732638645648,34.89454824,231.6,231.55,4.3187]
[1732638646350,34.89454824,231.62,231.55,4.3187]
[1732638646552,34.89454824,231.63,231.56,34.89454824]
[1732638646730,34.89454824,231.61,231.55,4.3187]
[1732638647130,34.89454824,231.59,231.52,34.89454824]
[1732638647332,34.89454824,231.57,231.5,34.89454824]
[1732638647744,34.89454824,231.58,231.5,34.89454824]
[1732638648049,34.89454824,231.58,231.51,34.89454824]
[1732638648559,34.89454824,231.58,231.52,4.3192]
[1732638649150,15.9574,231.64,231.55,34.89454824]
[1732638649356,34.89454824,231.66,231.58,34.89454824]
[1732638649552,34.89454824,231.68,231.6,34.89454824]
[1732638650666,34.89454824,231.75,231.67,34.89454824]
[1732638650966,34.89454824,231.75,231.62,10.7932]
[1732638650967,34.89454824,231.7,231.62,34.89454824]
[1732638651148,34.89454824,231.71,231.64,34.89454824]
[1732638651738,34.89454824,231.71,231.63,34.89454824]
[1732638652166,34.89454824,231.71,231.64,4.317]
[1732638652349,34.89454824,231.71,231.63,34.89454824]
[1732638652552,34.89454824,231.74,231.66,34.89454824]
[1732638652760,34.89454824,231.76,231.68,34.89454824]
[1732638652947,41.04944824,231.78,231.71,34.89454824]
[1732638653157,45.36384824,231.78,231.71,34.89454824]
[1732638653370,15.9574,231.8,231.73,34.89454824]
[1732638653371,50.85194824,231.8,231.73,34.89454824]
[1732638653569,50.85194824,231.8,231.72,34.89454824]
[1732638653868,34.89454824,231.78,231.71,34.89454824]